bitfinex-derivatives/quotes_BTCF0:USTF0_20250416
["timestamp","ask_amount","ask_price","bid_price","bid_amount"]
[1744797499261,0.5113495,83654.0,83653.0,0.01739381]
[1744797501770,0.5113495,83654.0,83653.0,0.00822025]
[1744797503964,0.5414495,83654.0,83653.0,0.00822025]
[1744797505467,0.5414495,83654.0,83653.0,0.12777125]
[1744797506161,0.5414495,83654.0,83653.0,0.16007125]
[1744797506356,0.5414495,83654.0,83653.0,0.19127125]
[1744797507166,0.5104495,83654.0,83653.0,0.19127125]
[1744797507465,0.3608,83654.0,83653.0,0.20127125]
[1744797507668,0.4803495,83654.0,83653.0,0.20127125]
[1744797513158,0.1195495,83654.0,83653.0,0.20127125]
[1744797514671,0.1195495,83654.0,83653.0,0.19127125]
[1744797521268,0.1511495,83654.0,83653.0,0.19127125]
[1744797525169,0.1832495,83654.0,83653.0,0.19127125]
[1744797527466,0.1832495,83654.0,83653.0,0.21127125]
[1744797530175,0.1832495,83654.0,83653.0,0.21119125]
[1744797530365,0.1832495,83654.0,83653.0,0.21127125]
[1744797553687,0.1195538,83651.0,83650.0,0.000108]
[1744797553886,0.1195538,83651.0,83650.0,0.010108]
[1744797554098,0.1195538,83651.0,83650.0,0.1196632]
[1744797554099,0.2148538,83651.0,83650.0,0.1196632]
[1744797554489,0.1523538,83651.0,83650.0,0.2167632]
[1744797554793,0.1523538,83651.0,83650.0,0.2166552]
[1744797554995,0.1523538,83651.0,83650.0,0.2187352]
[1744797555292,0.1523538,83651.0,83650.0,0.2287352]
[1744797555490,0.1835538,83651.0,83650.0,0.2307352]
[1744797557595,0.1835538,83651.0,83650.0,0.1979352]
[1744797558396,0.19567651,83651.0,83650.0,0.1979352]
[1744797560396,0.19567651,83651.0,83650.0,0.1657352]
[1744797560598,0.19567651,83651.0,83650.0,0.1336352]
[1744797560790,0.19567651,83651.0,83650.0,0.1647352]
[1744797561899,0.19567651,83651.0,83650.0,0.1974352]
[1744797563204,0.19567651,83651.0,83650.0,0.1235552]
[1744797563394,0.19567651,83651.0,83650.0,0.1236352]
[1744797563900,0.19567651,83651.0,83650.0,0.00408]
[1744797564693,0.20462083,83651.0,83650.0,0.00408]
[1744797566691,0.20462083,83651.0,83650.0,0.004]
[1744797567092,0.119561,83646.0,83645.0,0.00017925]
[1744797567388,0.12853853,83646.0,83645.0,0.12974165]
[1744797567599,0.22273853,83646.0,83645.0,0.12974165]
[1744797567795,0.22273853,83646.0,83645.0,0.16264165]
[1744797568197,0.22273853,83646.0,83645.0,0.04607925]
[1744797568503,0.22273853,83646.0,83645.0,0.16564165]
[1744797568694,0.22273853,83646.0,83645.0,0.16864165]
[1744797569000,0.22273853,83646.0,83645.0,0.15864165]
[1744797571708,0.52375803,83646.0,83643.0,0.00911681]
[1744797571903,0.0597812,83645.0,83644.0,0.0333]
[1744797572209,0.06875873,83645.0,83644.0,0.1628638]
[1744797572505,0.13215873,83645.0,83644.0,0.1628638]
[1744797573106,0.13215873,83645.0,83644.0,0.1658638]
[1744797574706,0.13215873,83645.0,83644.0,0.1678638]
[1744797576110,0.13215873,83645.0,83644.0,0.1991638]
[1744797577511,0.13215873,83645.0,83644.0,0.1891638]
[1744797579816,0.10075873,83645.0,83644.0,0.1891638]
[1744797580115,0.10075873,83645.0,83644.0,0.2212638]
[1744797581416,0.10075873,83645.0,83644.0,0.2312638]
[1744797582216,0.06875873,83645.0,83644.0,0.2312638]
[1744797583208,0.00897753,83645.0,83644.0,0.2312638]
[1744797583409,0.12853993,83645.0,83644.0,0.2312638]
[1744797583611,0.12853993,83645.0,83644.0,0.2412638]
[1744797584516,0.1195624,83645.0,83644.0,0.2412638]
[1744797586714,0.1521624,83645.0,83644.0,0.2412638]
[1744797587620,0.1195624,83645.0,83644.0,0.2412638]
[1744797588011,0.1195624,83645.0,83644.0,0.2312638]
[1744797589321,0.1520624,83645.0,83644.0,0.2312638]
[1744797589624,0.1520624,83645.0,83644.0,0.2313438]
[1744797591225,0.16109609,83645.0,83644.0,0.2313438]
[1744797591925,0.19389609,83645.0,83644.0,0.01508]
[1744797592118,0.19389609,83645.0,83644.0,0.00508]
[1744797592323,0.19389609,83645.0,83644.0,0.005]
[1744797592524,0.19389609,83645.0,83644.0,0.00508]
[1744797596131,0.55469609,83645.0,83644.0,0.00508]
[1744797600449,0.68513369,83645.0,83627.0,0.00550057]
[1744797600743,0.4803853,83629.0,83628.0,0.06]
[1744797601246,0.5736853,83629.0,83628.0,0.06]
[1744797601435,0.58271899,83629.0,83628.0,0.06008]
[1744797602048,0.58271899,83629.0,83628.0,0.06208]
[1744797602239,0.0597955,83625.0,83619.0,0.000108]
[1744797602440,0.4803981,83620.0,83619.0,0.000108]
[1744797602751,0.1196039,83616.0,83615.0,0.031]
[1744797603145,0.1814039,83616.0,83615.0,0.031]
[1744797603351,0.19043759,83616.0,83615.0,0.1506053]
[1744797604245,0.19043759,83616.0,83615.0,0.031]
[1744797604445,0.20215577,83616.0,83615.0,0.031]
[1744797604641,0.00903369,83616.0,83615.0,0.1706053]
[1744797604841,0.00903369,83616.0,83615.0,0.2336053]
[1744797605043,0.12863759,83616.0,83615.0,0.2336053]
[1744797605241,0.12963759,83616.0,83615.0,0.2386053]
[1744797605543,0.16133759,83616.0,83615.0,0.2386053]
[1744797605852,0.16133759,83616.0,83615.0,0.2406053]
[1744797608845,0.01003369,83616.0,83615.0,0.2406053]
[1744797609051,0.3608,83629.0,83627.0,0.1195881]
[1744797609246,0.11976606,83628.0,83627.0,0.2895881]
[1744797609440,0.11976606,83628.0,83627.0,0.3871881]
[1744797610450,0.11976606,83628.0,83627.0,0.3891881]
[1744797611346,0.11976606,83628.0,83627.0,0.3901881]
[1744797612248,0.00017936,83628.0,83627.0,0.3901881]
[1744797613151,0.11976606,83628.0,83627.0,0.3901881]
[1744797614455,0.00017936,83628.0,83627.0,0.3901881]
[1744797614644,0.11976606,83628.0,83627.0,0.3901881]
[1744797614849,0.00017936,83628.0,83627.0,0.3901881]
[1744797615043,0.11976606,83628.0,83627.0,0.3901881]
[1744797615250,0.00017936,83628.0,83627.0,0.3901881]
[1744797616642,0.11976606,83628.0,83627.0,0.3901881]
[1744797616850,0.00017936,83628.0,83627.0,0.4001881]
[1744797622649,0.06878634,83650.0,83648.0,0.1195581]
[1744797622951,0.3608,83654.0,83648.0,0.1195581]
[1744797622952,8e-05,83651.0,83650.0,0.1195552]
[1744797623156,0.005,83656.0,83655.0,0.1195481]
[1744797623355,0.1245467,83656.0,83655.0,0.1596481]
[1744797623856,0.005,83656.0,83655.0,0.16843567]
[1744797624050,0.00508,83656.0,83655.0,0.20013567]
[1744797624253,0.005,83656.0,83655.0,0.20013567]
[1744797624451,0.00508,83656.0,83655.0,0.20013567]
[1744797624759,0.005,83656.0,83655.0,0.20013567]
[1744797624959,0.00508,83656.0,83655.0,0.20013567]
[1744797625155,0.01308,83656.0,83655.0,0.21113567]
[1744797625651,0.01608,83656.0,83655.0,0.21113567]
[1744797625853,0.00808,83656.0,83655.0,0.21113567]
[1744797626053,0.01508,83656.0,83655.0,0.21113567]
[1744797633448,0.01508,83656.0,83655.0,0.57193567]
[1744797634266,0.01508,83656.0,83655.0,0.56193567]
[1744797636357,0.01508,83656.0,83655.0,0.57193567]
[1744797636759,0.015,83656.0,83655.0,0.57193567]
[1744797636955,0.01508,83656.0,83655.0,0.57193567]
[1744797637763,0.015,83656.0,83655.0,0.57193567]
[1744797637956,0.00017936,83664.0,83663.0,0.1195367]
[1744797638158,0.03317936,83664.0,83663.0,0.7447367]
[1744797638368,0.03325936,83664.0,83663.0,0.7447367]
[1744797638862,0.0324,83671.0,83670.0,0.1195267]
[1744797639163,0.0302,83675.0,83674.0,0.1195209]
[1744797639362,0.0302,83675.0,83674.0,0.2796209]
[1744797639558,0.1195157,83678.0,83677.0,0.1195167]
[1744797639767,0.14982171,83680.0,83679.0,0.1195138]
[1744797640061,0.1497137,83680.0,83679.0,0.1295138]
[1744797640266,0.2151937,83680.0,83679.0,0.1926138]
[1744797640567,0.2151937,83680.0,83679.0,0.1928818]
[1744797640866,0.03308,83680.0,83679.0,0.1928818]
[1744797641159,0.03414663,83680.0,83679.0,0.1928818]
[1744797641465,0.03514663,83680.0,83679.0,0.1928818]
[1744797641661,0.03614663,83680.0,83679.0,0.1928818]
[1744797642656,0.11968864,83695.0,83686.0,0.0597518]
[1744797642960,0.00019684,83695.0,83690.0,0.3608]
[1744797643154,0.0954,83700.0,83699.0,0.1194852]
[1744797643360,0.0954,83700.0,83699.0,0.1294852]
[1744797643566,0.2148838,83700.0,83699.0,0.1294852]
[1744797643860,0.2148838,83700.0,83699.0,0.1194852]
[1744797644264,0.2148838,83700.0,83699.0,0.12866]
[1744797644656,0.2198838,83700.0,83699.0,0.12866]
[1744797645561,0.2288838,83700.0,83699.0,0.12966]
[1744797651765,0.2288838,83700.0,83699.0,0.001]
[1744797651971,0.2288838,83700.0,83691.0,0.00017926]
[1744797651972,0.1194952,83692.0,83691.0,0.00017926]
[1744797652170,0.4802952,83692.0,83691.0,0.00017926]
[1744797652471,0.5455952,83692.0,83691.0,0.00017926]
[1744797653071,0.5525952,83692.0,83691.0,0.00117926]
[1744797653972,0.5555952,83692.0,83691.0,0.00117926]
[1744797655170,0.1194981,83690.0,83689.0,0.00060182]
[1744797655564,0.0597516,83687.0,83676.0,0.3608]
[1744797655875,0.1195338,83667.0,83666.0,0.17955792]
[1744797656171,0.1195338,83667.0,83666.0,0.11881142]
[1744797656372,0.2166338,83667.0,83666.0,0.11881142]
[1744797656768,0.2166338,83667.0,83666.0,0.14891142]
[1744797656968,0.2166338,83667.0,83666.0,0.14899142]
[1744797657673,0.2176338,83667.0,83666.0,0.14899142]
[1744797658066,0.2176338,83667.0,83666.0,0.14999142]
[1744797658576,0.2176338,83667.0,83666.0,0.14899142]
[1744797658778,0.2206338,83667.0,83666.0,0.14899142]
[1744797661373,0.1554338,83667.0,83666.0,0.14899142]
[1744797661678,0.1554338,83667.0,83666.0,0.18109142]
[1744797662077,0.004,83667.0,83666.0,0.18109142]
[1744797662279,0.004,83667.0,83666.0,0.21109142]
[1744797667988,0.1235309,83667.0,83666.0,0.08922592]
[1744797668284,0.1235309,83667.0,83666.0,0.05904592]
[1744797668485,0.1861309,83667.0,83666.0,0.05912592]
[1744797669377,0.1861309,83667.0,83666.0,0.17865832]
[1744797671982,0.1861309,83667.0,83666.0,0.05912592]
[1744797672173,0.1861309,83667.0,83666.0,0.00912592]
[1744797672378,0.1861309,83667.0,83666.0,0.00904592]
[1744797672578,0.1861309,83667.0,83666.0,8e-05]
[1744797672784,0.1861309,83667.0,83666.0,0.1196124]
[1744797673277,0.1861309,83667.0,83666.0,0.1518124]
[1744797674586,0.1861309,83667.0,83666.0,0.16080517]
[1744797675784,0.1861309,83667.0,83666.0,0.19200517]
[1744797676577,0.1861309,83667.0,83666.0,0.07247277]
[1744797676778,0.1861309,83667.0,83666.0,0.12860517]
[1744797677388,0.1861309,83667.0,83666.0,0.16110517]
[1744797678091,0.1861309,83667.0,83666.0,0.1521124]
[1744797682895,0.004,83667.0,83666.0,0.5229124]
[1744797683087,0.004,83667.0,83666.0,0.5532124]
[1744797683288,0.11969906,83675.0,83674.0,0.1195209]
[1744797683594,0.11969906,83675.0,83674.0,0.2243209]
[1744797684888,0.12469906,83675.0,83674.0,0.2243209]
[1744797685500,0.12669906,83675.0,83674.0,0.2243209]
[1744797687501,0.15979906,83675.0,83674.0,0.1520209]
[1744797687798,0.18979906,83675.0,83674.0,0.1520209]
[1744797688508,0.18979906,83675.0,83674.0,0.1521009]
[1744797689300,0.18979906,83675.0,83674.0,8e-05]
[1744797689703,0.1195238,83672.0,83671.0,0.0597624]
[1744797690001,0.4803238,83672.0,83671.0,0.0597624]
[1744797690194,0.5784238,83672.0,83671.0,0.0597624]
[1744797690500,0.2176238,83672.0,83671.0,0.0597624]
[1744797690994,0.2226238,83672.0,83671.0,0.0914624]
[1744797691399,0.2226238,83672.0,83671.0,0.1238624]
[1744797693605,0.1574238,83672.0,83671.0,0.1548624]
[1744797695307,0.1876238,83672.0,83671.0,0.1548624]
[1744797695905,0.1876238,83672.0,83671.0,0.1238624]
[1744797696906,0.1876238,83672.0,83671.0,0.0317]
[1744797697300,0.1876238,83672.0,83671.0,0.1512252]
[1744797697496,0.1876238,83672.0,83671.0,0.1195252]
[1744797697703,0.1195267,83670.0,83669.0,0.030708]
[1744797698106,0.2155267,83670.0,83669.0,0.0306]
[1744797698302,0.2155267,83670.0,83669.0,0.1501281]
[1744797698497,0.2155267,83670.0,83669.0,0.1502081]
[1744797698899,0.2165267,83670.0,83669.0,0.1502081]
[1744797699100,0.2165267,83670.0,83669.0,0.1196081]
[1744797699805,0.2195267,83670.0,83669.0,0.1196081]
[1744797702716,0.2195267,83670.0,83669.0,0.1525081]
[1744797702909,0.2195267,83670.0,83669.0,0.1833081]
[1744797705614,0.2195267,83670.0,83669.0,0.1525081]
[1744797706107,0.2195267,83670.0,83669.0,0.1851081]
[1744797710516,0.1,83670.0,83669.0,0.1851081]
[1744797710810,0.1564267,83670.0,83669.0,0.1851081]
[1744797711015,0.004,83670.0,83669.0,0.1851081]
[1744797711412,0.004,83670.0,83669.0,0.2151081]
[1744797716616,0.004,83670.0,83669.0,0.2251081]
[1744797720807,0.1195057,83685.0,83684.0,0.1195067]
[1744797721217,0.1501057,83685.0,83684.0,0.1195067]
[1744797721907,0.1501057,83685.0,83684.0,0.1295067]
[1744797722106,0.1581057,83685.0,83684.0,0.1305067]
[1744797722306,0.1581057,83685.0,83684.0,0.1953067]
[1744797723111,0.1621057,83685.0,83684.0,0.1953067]
[1744797723619,0.0426,83685.0,83684.0,0.1953067]
[1744797723820,0.012,83685.0,83684.0,0.2276067]
[1744797725319,8e-05,83691.0,83690.0,0.1194981]
[1744797725624,8e-05,83691.0,83690.0,0.1940981]
[1744797726015,0.1195767,83691.0,83690.0,0.1608981]
[1744797726521,0.1848767,83691.0,83690.0,0.1608981]
[1744797726823,0.1848767,83691.0,83690.0,0.1940981]
[1744797727314,0.1848767,83691.0,83690.0,0.1840981]
[1744797727623,0.1888767,83691.0,83690.0,0.1840981]
[1744797727823,0.1888767,83691.0,83690.0,0.1508981]
[1744797729020,0.19158408,83691.0,83690.0,0.1508981]
[1744797730019,0.19158408,83691.0,83690.0,0.1608981]
[1744797733723,0.19158408,83691.0,83690.0,0.1508981]
[1744797734723,0.19158408,83691.0,83690.0,0.1194981]
[1744797735824,0.1195024,83687.0,83686.0,0.1195812]
[1744797736026,0.12220978,83687.0,83686.0,8e-05]
[1744797736225,0.1195152,83678.0,83677.0,0.0317]
[1744797736432,0.1195152,83678.0,83677.0,0.11196572]
[1744797736818,0.2130152,83678.0,83677.0,0.11196572]
[1744797737022,0.09620738,83678.0,83677.0,0.29123092]
[1744797737224,0.21572258,83678.0,83677.0,0.00026572]
[1744797737625,0.1195167,83677.0,83665.0,0.00910399]
[1744797737826,0.1815167,83677.0,83673.0,0.000108]
[1744797738036,0.062,83677.0,83676.0,0.11969736]
[1744797738226,0.18422408,83677.0,83676.0,0.12969736]
[1744797738426,0.18422408,83677.0,83676.0,0.19419736]
[1744797738628,0.15322408,83677.0,83676.0,0.19419736]
[1744797739530,0.18422408,83677.0,83676.0,0.19419736]
[1744797740030,0.54502408,83677.0,83676.0,0.19419736]
[1744797741635,0.54602408,83677.0,83676.0,0.19419736]
[1744797743333,0.54602408,83677.0,83676.0,0.01017926]
[1744797743539,0.54602408,83677.0,83676.0,0.00017926]
[1744797743940,0.54602408,83677.0,83676.0,0.00025926]
[1744797744338,0.42650738,83677.0,83676.0,0.00025926]
[1744797744635,0.42640738,83677.0,83676.0,0.00025926]
[1744797745449,0.42740738,83677.0,83676.0,0.00025926]
[1744797745627,0.42740738,83677.0,83676.0,0.00017926]
[1744797745827,0.42640738,83677.0,83676.0,0.00025926]
[1744797746032,0.42840738,83677.0,83676.0,0.00025926]
[1744797746339,0.43040738,83677.0,83676.0,0.00017926]
[1744797746535,0.06960738,83677.0,83676.0,0.04025926]
[1744797746727,0.43040738,83677.0,83676.0,0.00025926]
[1744797748644,0.39940738,83677.0,83676.0,0.00025926]
[1744797748839,0.39940738,83677.0,83676.0,0.01025926]
[1744797750839,0.51892408,83677.0,83676.0,0.12977736]
[1744797751445,0.51892408,83677.0,83676.0,0.19077736]
[1744797752843,0.00770738,83677.0,83676.0,0.19077736]
[1744797753238,0.00770738,83677.0,83676.0,0.20077736]
[1744797753542,0.1195056,83685.0,83684.0,0.1792585]
[1744797753741,0.1195056,83685.0,83684.0,0.1992585]
[1744797754739,0.1225056,83685.0,83684.0,0.1992585]
[1744797755634,0.007,83685.0,83684.0,0.1992585]
[1744797756546,0.003,83685.0,83684.0,0.1992585]
[1744797756738,0.1195046,83691.0,83684.0,0.022]
[1744797756941,0.0597497,83689.0,83688.0,0.119501]
[1744797757139,0.1792535,83689.0,83688.0,0.129501]
[1744797757345,0.1793335,83689.0,83688.0,0.129501]
[1744797759538,8e-05,83689.0,83688.0,0.129501]
[1744797759938,8e-05,83689.0,83688.0,0.131501]
[1744797761543,8e-05,83689.0,83688.0,0.141501]
[1744797764148,8e-05,83689.0,83688.0,0.173801]
[1744797764855,0.1194958,83692.0,83691.0,0.1194967]
[1744797765058,0.00017926,83693.0,83692.0,0.1194952]
[1744797765354,0.11967306,83693.0,83692.0,0.1394952]
[1744797765554,0.11967306,83693.0,83692.0,0.1723952]
[1744797766757,0.15147306,83693.0,83692.0,0.1723952]
[1744797767648,0.15147306,83693.0,83692.0,0.2034952]
[1744797768748,0.18267306,83693.0,83692.0,0.2034952]
[1744797769355,0.15147306,83693.0,83692.0,0.2034952]
[1744797771061,0.15147306,83693.0,83692.0,0.2364952]
[1744797772558,0.11967306,83693.0,83692.0,0.2364952]
[1744797772957,0.15217306,83693.0,83692.0,0.2364952]
[1744797773457,0.03267926,83693.0,83692.0,0.2364952]
[1744797773657,0.00014581,83698.0,83694.0,0.0597457]
[1744797773865,0.00019684,83702.0,83701.0,0.1194824]
[1744797774162,0.1519769,83705.0,83704.0,0.1194781]
[1744797774363,0.1519769,83705.0,83704.0,0.1930781]
[1744797775661,0.1529769,83705.0,83704.0,0.1930781]
[1744797776561,0.1539769,83705.0,83704.0,0.1930781]
[1744797777065,0.1868769,83705.0,83704.0,0.1930781]
[1744797778265,0.0345,83705.0,83704.0,0.1930781]
[1744797778472,0.0356,83708.0,83707.0,0.1194738]
[1744797778667,0.005,83708.0,83707.0,0.3094738]
[1744797778868,0.00508,83708.0,83707.0,0.3731738]
[1744797779168,0.00508,83708.0,83707.0,0.38211273]
[1744797779372,0.005,83708.0,83707.0,0.38211273]
[1744797779569,0.0597275,83721.0,83714.0,0.0597313]
[1744797779764,0.11998316,83723.0,83722.0,0.1194524]
[1744797780069,0.00053146,83723.0,83722.0,0.1194524]
[1744797780267,0.5996861,83731.0,83730.0,0.1194367]
[1744797780458,0.0597206,83731.0,83730.0,0.1194367]
[1744797780662,0.0597206,83731.0,83730.0,0.1294367]
[1744797781065,0.0597206,83731.0,83730.0,0.1903367]
[1744797781468,0.005,83734.0,83733.0,0.1194367]
[1744797781663,0.005,83734.0,83733.0,0.1294367]
[1744797781864,0.1244353,83734.0,83733.0,0.1294367]
[1744797782261,0.1245153,83734.0,83733.0,0.1294367]
[1744797782463,0.1244353,83734.0,83733.0,0.1294367]
[1744797782667,0.1245153,83734.0,83733.0,0.1294367]
[1744797782986,0.01,83734.0,83733.0,0.1294367]
[1744797783168,0.01008,83734.0,83733.0,0.1294367]
[1744797783361,0.01,83734.0,83733.0,0.1294367]
[1744797783760,0.1295153,83734.0,83733.0,0.1294367]
[1744797783966,0.01,83734.0,83733.0,0.1294367]
[1744797784368,0.015,83734.0,83733.0,0.1394367]
[1744797784572,0.00019684,83744.0,83743.0,0.1194225]
[1744797784772,0.0597048,83752.0,83751.0,0.1194096]
[1744797785272,0.0597048,83752.0,83751.0,0.1294096]
[1744797785466,0.0597848,83752.0,83751.0,0.1294096]
[1744797785673,0.0597048,83752.0,83751.0,0.1294096]
[1744797785873,0.0915848,83752.0,83751.0,0.1294096]
[1744797786066,0.0975848,83752.0,83751.0,0.1294096]
[1744797786571,0.119421,83744.0,83743.0,0.00017914]
[1744797786769,0.369421,83744.0,83743.0,0.00017914]
[1744797787474,0.432921,83744.0,83743.0,0.00017914]
[1744797787972,0.182921,83744.0,83743.0,0.00017914]
[1744797788772,0.182921,83744.0,83743.0,0.11960164]
[1744797789280,0.183001,83744.0,83743.0,0.11960164]
[1744797790074,0.182921,83744.0,83743.0,0.11960164]
[1744797790668,0.183001,83744.0,83743.0,0.11960164]
[1744797793470,0.543801,83744.0,83743.0,0.11960164]
[1744797794675,0.543801,83744.0,83743.0,0.00017914]
[1744797803080,0.543801,83744.0,83727.0,0.12094697]
[1744797803081,0.1194439,83728.0,83727.0,0.12094697]
[1744797803386,0.1792097,83712.0,83711.0,0.1194604]
[1744797803581,0.1792097,83712.0,83711.0,0.1716604]
[1744797803980,0.1792097,83712.0,83711.0,0.1717404]
[1744797804175,0.1792097,83712.0,83711.0,0.2044404]
[1744797804687,0.1792097,83712.0,83711.0,0.2361404]
[1744797804879,0.1792097,83712.0,83711.0,0.2421404]
[1744797805486,0.1792097,83712.0,83711.0,0.2451404]
[1744797805785,0.1792097,83712.0,83711.0,0.2421404]
[1744797806187,0.1792097,83712.0,83711.0,0.2391404]
[1744797806386,0.1792097,83712.0,83711.0,0.2411404]
[1744797806683,0.0597359,83712.0,83711.0,0.2411404]
[1744797807185,0.0597359,83712.0,83711.0,0.25022525]
[1744797807786,0.0597359,83712.0,83711.0,0.24922525]
[1744797808691,0.0597359,83712.0,83711.0,0.25022525]
[1744797811493,0.0597359,83712.0,83711.0,0.13076485]
[1744797811784,0.0597359,83712.0,83711.0,0.13068485]
[1744797811984,0.0597359,83712.0,83711.0,0.23023295]
[1744797812983,0.3608,83713.0,83712.0,0.1194667]
[1744797813184,0.23909864,83720.0,83719.0,0.1194567]
[1744797813390,0.11963654,83720.0,83719.0,0.1294567]
[1744797813683,0.05990684,83720.0,83719.0,0.1294567]
[1744797813888,0.05998684,83720.0,83719.0,0.1930567]
[1744797814880,0.05998684,83720.0,83719.0,0.1830567]
[1744797819687,0.00025914,83720.0,83719.0,0.1830567]
[1744797819889,0.00025914,83720.0,83719.0,0.1930567]
[1744797820088,0.00017914,83720.0,83719.0,0.1930567]
[1744797820286,0.1791652,83730.0,83729.0,0.1194424]
[1744797820483,0.00010801,83731.0,83730.0,0.119441]
[1744797820683,0.1194395,83732.0,83731.0,0.1194396]
[1744797821193,0.1194395,83732.0,83731.0,0.1832396]
[1744797821387,0.3608,83734.0,83733.0,0.1194367]
[1744797821782,0.3608,83734.0,83733.0,0.1932367]
[1744797821985,8e-05,83734.0,83733.0,0.1932367]
[1744797822389,0.00011725,83740.0,83739.0,0.1194282]
[1744797822581,0.00011725,83740.0,83739.0,0.2694282]
[1744797822789,0.3608,83754.0,83739.0,0.2694282]
[1744797822790,0.4802068,83754.0,83753.0,0.1194082]
[1744797823278,0.3608,83754.0,83753.0,0.2156082]
[1744797823886,0.4802868,83754.0,83753.0,0.2156082]
[1744797824087,0.4802068,83754.0,83753.0,0.2156082]
[1744797824388,0.36088,83754.0,83753.0,0.2156082]
[1744797824580,0.36288,83754.0,83753.0,0.2156082]
[1744797824984,0.36288,83754.0,83753.0,0.22438909]
[1744797828690,0.3608,83773.0,83772.0,0.1193811]
[1744797828988,0.4801797,83773.0,83772.0,0.1193811]
[1744797829381,0.49191816,83773.0,83772.0,0.1193811]
[1744797829578,0.52469816,83773.0,83772.0,0.1193811]
[1744797829779,0.55589816,83773.0,83772.0,0.0307]
[1744797829990,0.58879816,83773.0,83772.0,0.0307]
[1744797830183,0.58879816,83773.0,83772.0,0.1500811]
[1744797830781,0.0596927,83770.0,83766.0,0.0306]
[1744797830995,0.1193868,83768.0,83767.0,0.1500877]
[1744797831394,0.1832868,83768.0,83767.0,0.1500877]
[1744797832091,0.1193868,83768.0,83767.0,0.1500877]
[1744797832596,0.1193868,83768.0,83767.0,0.1805877]
[1744797833787,0.1518868,83768.0,83767.0,0.1805877]
[1744797834893,0.1828868,83768.0,83767.0,0.1805877]
[1744797837697,0.5436868,83768.0,83767.0,0.1805877]
[1744797838291,0.1828868,83768.0,83767.0,0.1805877]
[1744797838500,0.5436868,83768.0,83767.0,0.1805877]
[1744797838995,0.5111868,83768.0,83767.0,0.1805877]
[1744797839384,0.3608,83768.0,83767.0,0.1805877]
[1744797839586,0.3608,83768.0,83767.0,0.1905877]
[1744797840001,0.36088,83768.0,83767.0,0.1905877]
[1744797840598,0.4802668,83768.0,83767.0,0.1905877]
[1744797840799,0.5124668,83768.0,83767.0,0.1905877]
[1744797840984,0.1193911,83765.0,83764.0,0.00017914]
[1744797841189,0.1194025,83757.0,83756.0,0.2435024]
[1744797841391,0.1194025,83757.0,83756.0,0.3235024]
[1744797841584,0.1516025,83757.0,83756.0,0.3235024]
[1744797844195,0.1835025,83757.0,83756.0,0.3235024]
[1744797845990,0.1835025,83757.0,83756.0,0.1123]
[1744797846499,0.1835025,83757.0,83756.0,0.2317039]
[1744797847095,0.19552649,83757.0,83756.0,0.2317039]
[1744797847294,0.19552649,83757.0,83756.0,0.1517039]
[1744797849999,0.0597027,83755.0,83753.0,0.00891577]
[1744797850296,0.1846068,83754.0,83753.0,0.1194082]
[1744797850491,0.0652,83754.0,83750.0,0.059706]
[1744797850695,0.4205056,83751.0,83745.0,0.0328]
[1744797850888,0.1194139,83749.0,83748.0,0.11959444]
[1744797851297,0.1810139,83749.0,83748.0,0.11959444]
[1744797851799,0.1810139,83749.0,83748.0,0.15189444]
[1744797852898,0.1810139,83749.0,83748.0,0.15289444]
[1744797853493,0.1810139,83749.0,83748.0,0.00117914]
[1744797853699,0.1810139,83749.0,83748.0,0.12059444]
[1744797854093,0.1810139,83749.0,83748.0,0.15349444]
[1744797855701,0.1498139,83749.0,83748.0,0.21729444]
[1744797856003,0.1194139,83749.0,83748.0,0.21729444]
[1744797856205,0.1194939,83749.0,83748.0,0.21729444]
[1744797863409,0.1510939,83749.0,83748.0,0.06507914]
[1744797863700,0.1837939,83749.0,83748.0,0.06507914]
[1744797863893,0.1837939,83749.0,83748.0,0.18449444]
[1744797864294,0.1837939,83749.0,83748.0,0.06507914]
[1744797864703,0.1837939,83749.0,83748.0,0.18449444]
[1744797866303,0.1837939,83749.0,83748.0,0.18349444]
[1744797871701,0.1510939,83749.0,83748.0,0.18349444]
[1744797873700,0.1510939,83749.0,83748.0,0.06407914]
[1744797874299,0.1836939,83749.0,83748.0,0.06407914]
[1744797874696,0.1836939,83749.0,83748.0,0.18349444]
[1744797876307,0.1194939,83749.0,83748.0,0.18349444]
[1744797878107,0.0597063,83750.0,83748.0,0.18349444]
[1744797878108,0.3608,83750.0,83749.0,0.1194139]
[1744797878311,0.4802125,83750.0,83749.0,0.1820139]
[1744797882717,0.1194139,83749.0,83748.0,0.00017914]
[1744797883014,0.1507139,83749.0,83748.0,0.00017914]
[1744797883199,0.2138139,83749.0,83748.0,0.00017914]
[1744797885307,0.2138139,83749.0,83748.0,0.03227914]
[1744797885808,0.2138139,83749.0,83748.0,0.15169444]
[1744797887003,0.2138139,83749.0,83748.0,0.18409444]
[1744797892110,0.1194139,83749.0,83748.0,0.18409444]
[1744797898912,0.1194939,83749.0,83748.0,0.18409444]
[1744797900707,0.1497939,83749.0,83748.0,0.18409444]
[1744797901222,0.1194939,83749.0,83748.0,0.18409444]
[1744797902219,0.1497939,83749.0,83748.0,0.18409444]
[1744797902923,0.1194939,83749.0,83748.0,0.18409444]
[1744797906924,0.1519939,83749.0,83748.0,0.18409444]
[1744797908125,0.5127939,83749.0,83748.0,0.18409444]
[1744797910126,0.4802939,83749.0,83748.0,0.18409444]
[1744797913730,0.4802939,83749.0,83748.0,0.20409444]
[1744797918832,0.1194939,83749.0,83748.0,0.20409444]
[1744797919034,0.4802939,83749.0,83748.0,0.20409444]
[1744797919820,0.00010801,83752.0,83751.0,0.1194111]
[1744797920024,0.00010801,83752.0,83751.0,0.3419111]
[1744797920231,0.1790955,83762.0,83761.0,0.1193968]
[1744797920431,0.1790988,83760.0,83759.0,0.1193989]
[1744797921328,0.1790988,83760.0,83759.0,0.1497989]
[1744797921530,0.2104988,83760.0,83759.0,0.1824989]
[1744797923421,0.2104988,83760.0,83759.0,0.1520989]
[1744797925922,0.2104988,83760.0,83759.0,0.1193989]
[1744797926326,0.2104988,83760.0,83759.0,0.1503989]
[1744797927431,0.1194068,83754.0,83753.0,0.00900677]
[1744797927734,0.1194139,83749.0,83725.0,0.07808]
[1744797927931,0.4802139,83749.0,83742.0,0.0314]
[1744797928231,0.5113139,83749.0,83742.0,0.0314]
[1744797928435,0.5436139,83749.0,83743.0,0.1194218]
[1744797928733,0.5436139,83749.0,83742.0,0.0314]
[1744797929122,0.5436139,83749.0,83742.0,0.0633]
[1744797929329,0.5436139,83749.0,83748.0,0.12159444]
[1744797929630,0.5436139,83749.0,83748.0,0.00217914]
[1744797936525,0.5436139,83749.0,83748.0,0.03327914]
[1744797939538,0.5436139,83749.0,83748.0,0.03337914]
[1744797952345,0.4802139,83749.0,83748.0,0.03337914]
[1744797952848,0.5127139,83749.0,83748.0,0.03337914]
[1744797956448,0.4802139,83749.0,83748.0,0.03337914]
[1744797957039,0.5103139,83749.0,83748.0,0.03337914]